fUSD/lending_fUSD_20250618
["ID","MTS","AMOUNT","RATE_DAILY","PERIOD"]
[366411996,1750236332749,-490.0,0.00016438,2]
[366411997,1750236332771,-490.0,0.00016438,2]
[366411998,1750236332793,-490.0,0.00016438,2]
[366411999,1750236332815,-816.34,0.00016438,2]
[366412000,1750236332837,-490.0,0.00016438,2]
[366412001,1750236332858,-2095.76,0.00016438,2]
[366412002,1750236332879,-502.20440282,0.00016438,2]
[366412003,1750236332901,-348.64091862,0.00016438,2]
[366412004,1750236332922,-1346.02,0.00016438,2]
[366412005,1750236332944,-838.79175199,0.00016438,2]
[366412006,1750236334251,-788.24824801,0.00016438,2]
[366412007,1750236334275,-490.0,0.00016438,2]
[366412008,1750236334299,-2053.31,0.00016438,2]
[366412009,1750236334323,-490.0,0.00016438,2]
[366412010,1750236334347,-490.0,0.00016438,2]
[366412011,1750236334372,-490.0,0.00016438,2]
[366412012,1750236334396,-490.0,0.00016438,2]
[366412013,1750236334420,-490.0,0.00016438,2]
[366412014,1750236334442,-490.0,0.00016438,2]
[366412015,1750236334468,-846.52,0.00016438,2]
[366412016,1750236334491,-298.17435014,0.00016438,2]
[366412017,1750236334514,-490.0,0.00016438,2]
[366412018,1750236334537,-614.45,0.00016438,2]
[366412019,1750236334560,-490.0,0.00016438,2]
[366412020,1750236334583,-490.0,0.00016438,2]
[366412021,1750236334607,-490.0,0.00016438,2]
[366412022,1750236334629,-1680.0,0.00016438,2]
[366412023,1750236334653,-612.2732131,0.00016438,2]
[366412024,1750236334676,-490.0,0.00016438,2]
[366412025,1750236334699,-490.0,0.00016438,2]
[366412026,1750236334722,-490.0,0.00016438,2]
[366412027,1750236334745,-490.0,0.00016438,2]
[366412028,1750236334769,-490.0,0.00016438,2]
[366412029,1750236334791,-490.0,0.00016438,2]
[366412030,1750236334813,-582.5,0.00016438,2]
[366412031,1750236334835,-490.0,0.00016438,2]
[366412032,1750236334857,-490.0,0.00016438,2]
[366412033,1750236334878,-2076.88,0.00016438,2]
[366412034,1750236334900,-490.0,0.00016438,2]
[366412035,1750236334922,-490.0,0.00016438,2]
[366412036,1750236334944,-1589.43,0.00016438,2]
[366412037,1750236334965,-864.9,0.00016438,2]
[366412038,1750236334989,-734.27,0.00016438,2]
[366412039,1750236335012,-490.0,0.00016438,2]
[366412040,1750236335034,-490.0,0.00016438,2]
[366412041,1750236335056,-557.37,0.00016438,2]
[366412042,1750236335078,-490.0,0.00016438,2]
[366412043,1750236335102,-490.0,0.00016438,2]
[366412044,1750236335125,-1222.12,0.00016438,2]
[366412045,1750236335147,-621.34,0.00016438,2]
[366412046,1750236335169,-1678.17,0.00016438,2]
[366412047,1750236335431,-650.6,0.00016438,2]
[366412048,1750236335455,-490.0,0.00016438,2]
[366412049,1750236335481,-355.01971392,0.00016438,2]
[366412050,1750236335502,-490.0,0.00016438,2]
[366412051,1750236335524,-490.0,0.00016438,2]
[366412052,1750236335546,-1861.3,0.00016438,2]
[366412053,1750236335568,-490.0,0.00016438,2]
[366412054,1750236335589,-1263.99,0.00016438,2]
[366412055,1750236335610,-490.0,0.00016438,2]
[366412056,1750236335631,-490.0,0.00016438,2]
[366412057,1750236335654,-490.0,0.00016438,2]
[366412058,1750236335676,-490.0,0.00016438,2]
[366412059,1750236335697,-490.0,0.00016438,2]
[366412060,1750236335719,-490.0,0.00016438,2]
[366412061,1750236335742,-703.2,0.00016438,2]
[366412062,1750236335764,-490.0,0.00016438,2]
[366412063,1750236335786,-1308.74,0.00016438,2]
[366412064,1750236335807,-490.0,0.00016438,2]
[366412065,1750236335828,-615.15,0.00016438,2]
[366412066,1750236335850,-496.47520873,0.00016438,2]
[366412067,1750236335872,-720.09,0.00016438,2]
[366412068,1750236335893,-490.0,0.00016438,2]
[366412069,1750236335915,-490.0,0.00016438,2]
[366412070,1750236335938,-490.0,0.00016438,2]
[366412071,1750236335960,-490.0,0.00016438,2]
[366412072,1750236335981,-490.0,0.00016438,2]
[366412073,1750236336004,-490.0,0.00016438,2]
[366412074,1750236336027,-490.0,0.00016438,2]
[366412075,1750236336050,-608.25,0.00016438,2]
[366412076,1750236336073,-614.32,0.00016438,2]
[366412077,1750236336097,-606.4,0.00016438,2]
[366412078,1750236336120,-606.4,0.00016438,2]
[366412079,1750236336145,-799.77,0.00016438,2]
[366412080,1750236336169,-1185.48,0.00016438,2]
[366412081,1750236336192,-490.0,0.00016438,2]
[366412082,1750236336215,-499.28400562,0.00016438,2]
[366412083,1750236336238,-1249.58,0.00016438,2]
[366412084,1750236336263,-490.0,0.00016438,2]
[366412085,1750236336285,-491.3,0.00016438,2]
[366412086,1750236336308,-1238.17,0.00016438,2]
[366412087,1750236336330,-676.4,0.00016438,2]
[366412088,1750236336353,-1324.93,0.00016438,2]
[366412089,1750236336376,-461.12173743,0.00016438,2]
[366412090,1750236336398,-600.08,0.00016438,2]
[366412091,1750236336420,-490.0,0.00016438,2]
[366412092,1750236336442,-978.06,0.00016438,2]
[366412093,1750236336468,-1726.7,0.00016438,2]
[366412094,1750236336490,-431.33537977,0.00016438,2]
[366412095,1750236336511,-948.88,0.00016438,2]
[366412096,1750236336533,-490.0,0.00016438,2]
[366412097,1750236336556,-490.0,0.00016438,2]
[366412098,1750236336578,-490.0,0.00016438,2]
[366412099,1750236336600,-495.41079905,0.00016438,2]
[366412100,1750236336622,-490.0,0.00016438,2]
[366412101,1750236336645,-490.0,0.00016438,2]
[366412102,1750236336667,-542.49,0.00016438,2]
[366412103,1750236336689,-561.6,0.00016438,2]
[366412104,1750236336711,-490.0,0.00016438,2]
[366412105,1750236336732,-2070.24,0.00016438,2]
[366412106,1750236336753,-490.0,0.00016438,2]
[366412107,1750236336775,-638.58,0.00016438,2]
[366412108,1750236336796,-490.0,0.00016438,2]
[366412109,1750236336819,-490.0,0.00016438,2]
[366412110,1750236336841,-266.08778228,0.00016438,2]
[366412111,1750236336864,-490.0,0.00016438,2]
[366412112,1750236336886,-490.0,0.00016438,2]
[366412113,1750236336908,-490.0,0.00016438,2]
[366412114,1750236336931,-490.0,0.00016438,2]
[366412115,1750236336953,-1106.56,0.00016438,2]
[366412116,1750236336975,-1686.48,0.00016438,2]
[366412117,1750236336998,-677.53,0.00016438,2]
[366412118,1750236337021,-490.0,0.00016438,2]
[366412119,1750236337044,-931.63,0.00016438,2]
[366412120,1750236337067,-490.0,0.00016438,2]
[366412121,1750236337089,-556.92,0.00016438,2]
[366412122,1750236337113,-490.0,0.00016438,2]
[366412123,1750236337136,-541.39,0.00016438,2]
[366412124,1750236337160,-490.0,0.00016438,2]
[366412125,1750236337183,-490.0,0.00016438,2]
[366412126,1750236337206,-490.0,0.00016438,2]
[366412127,1750236337228,-521.95,0.00016438,2]
[366412128,1750236337251,-2250.39,0.00016438,2]
[366412129,1750236337272,-677.21,0.00016438,2]
[366412130,1750236337296,-490.0,0.00016438,2]
[366412131,1750236337318,-490.0,0.00016438,2]
[366412132,1750236337340,-490.0,0.00016438,2]
[366412133,1750236337361,-490.0,0.00016438,2]
[366412134,1750236337383,-490.0,0.00016438,2]
[366412135,1750236337405,-490.0,0.00016438,2]
[366412136,1750236337427,-490.0,0.00016438,2]
[366412137,1750236337449,-1447.8,0.00016438,2]
[366412138,1750236337473,-502.26,0.00016438,2]
[366412139,1750236337495,-490.0,0.00016438,2]
[366412140,1750236337519,-1063.54,0.00016438,2]
[366412141,1750236337542,-490.0,0.00016438,2]
[366412142,1750236337566,-490.0,0.00016438,2]
[366412143,1750236337588,-490.0,0.00016438,2]
[366412144,1750236337611,-490.0,0.00016438,2]
[366412145,1750236337635,-909.03,0.00016438,2]
[366412146,1750236337660,-490.0,0.00016438,2]
[366412147,1750236337681,-490.0,0.00016438,2]
[366412148,1750236337704,-179.77602948,0.00016438,2]
[366412149,1750236337726,-501.03,0.00016438,2]
[366412150,1750236337749,-1082.15,0.00016438,2]
[366412151,1750236337772,-490.0,0.00016438,2]
[366412152,1750236337796,-490.0,0.00016438,2]
[366412153,1750236337818,-490.0,0.00016438,2]
[366412154,1750236337840,-490.0,0.00016438,2]
[366412155,1750236337863,-1171.9,0.00016438,2]
[366412156,1750236337885,-1238.14,0.00016438,2]
[366412157,1750236337908,-1177.18,0.00016438,2]
[366412158,1750236337930,-490.0,0.00016438,2]
[366412159,1750236337953,-490.0,0.00016438,2]
[366412160,1750236337975,-548.31,0.00016438,2]
[366412161,1750236337998,-887.88,0.00016438,2]
[366412162,1750236338021,-490.0,0.00016438,2]
[366412163,1750236338045,-490.0,0.00016438,2]
[366412164,1750236338068,-490.0,0.00016438,2]
[366412165,1750236338090,-1632.53,0.00016438,2]
[366412166,1750236338112,-490.0,0.00016438,2]
[366412167,1750236338134,-490.0,0.00016438,2]
[366412168,1750236338156,-490.0,0.00016438,2]
[366412169,1750236338179,-1075.69,0.00016438,2]
[366412170,1750236338202,-884.34,0.00016438,2]
[366412171,1750236338225,-490.0,0.00016438,2]
[366412172,1750236338248,-490.0,0.00016438,2]
[366412173,1750236338270,-490.0,0.00016438,2]
[366412174,1750236338292,-490.0,0.00016438,2]
[366412175,1750236338314,-490.0,0.00016438,2]
[366412176,1750236338336,-490.0,0.00016438,2]
[366412177,1750236338359,-580.11368426,0.00016438,2]
[366412178,1750236338381,-490.0,0.00016438,2]
[366412179,1750236338404,-490.0,0.00016438,2]
[366412180,1750236338428,-840.68,0.00016438,2]
[366412181,1750236338451,-1107.82,0.00016438,2]
[366412182,1750236338477,-1020.53,0.00016438,2]
[366412183,1750236338499,-1106.45,0.00016438,2]
[366412184,1750236338521,-1408.19,0.00016438,2]
[366412185,1750236338542,-490.0,0.00016438,2]
[366412186,1750236338564,-733.34,0.00016438,2]
[366412187,1750236338587,-490.0,0.00016438,2]
[366412188,1750236338610,-1183.39,0.00016438,2]
[366412189,1750236338633,-566.35,0.00016438,2]
[366412190,1750236338656,-610.03,0.00016438,2]
[366412191,1750236338678,-490.0,0.00016438,2]
[366412192,1750236338700,-595.39,0.00016438,2]
[366412193,1750236338722,-492.94,0.00016438,2]
[366412194,1750236338745,-1361.74,0.00016438,2]
[366412195,1750236338773,-490.0,0.00016438,2]
[366412196,1750236338795,-490.0,0.00016438,2]
[366412197,1750236338817,-490.0,0.00016438,2]
[366412198,1750236338840,-736.56,0.00016438,2]
[366412199,1750236338864,-490.0,0.00016438,2]
[366412200,1750236338888,-490.0,0.00016438,2]
[366412201,1750236338910,-609.76,0.00016438,2]
[366412202,1750236338934,-524.39,0.00016438,2]
[366412203,1750236338957,-490.0,0.00016438,2]
[366412204,1750236338979,-746.56,0.00016438,2]
[366412205,1750236339002,-1010.01,0.00016438,2]
[366412206,1750236339025,-639.99,0.00016438,2]
[366412207,1750236339049,-490.0,0.00016438,2]
[366412208,1750236339073,-521.75,0.00016438,2]
[366412209,1750236339097,-1270.42,0.00016438,2]
[366412210,1750236339120,-1151.24,0.00016438,2]
[366412211,1750236339144,-490.0,0.00016438,2]
[366412212,1750236339168,-794.87,0.00016438,2]
[366412213,1750236339192,-753.51,0.00016438,2]
[366412214,1750236339216,-490.0,0.00016438,2]
[366412215,1750236339240,-667.45,0.00016438,2]
[366412216,1750236339264,-490.0,0.00016438,2]
[366412217,1750236339289,-756.33,0.00016438,2]
[366412218,1750236339317,-1006.28,0.00016438,2]
[366412219,1750236339341,-673.05,0.00016438,2]
[366412220,1750236339367,-582.56,0.00016438,2]
[366412221,1750236339391,-1178.78,0.00016438,2]
[366412222,1750236339415,-682.36,0.00016438,2]
[366412223,1750236339438,-490.0,0.00016438,2]
[366412224,1750236339462,-1256.91,0.00016438,2]
[366412225,1750236339485,-490.0,0.00016438,2]
[366412226,1750236339509,-490.0,0.00016438,2]
[366412227,1750236339532,-490.0,0.00016438,2]
[366412228,1750236339559,-490.0,0.00016438,2]
[366412229,1750236339880,-490.0,0.00016438,2]
[366412230,1750236339904,-490.61557102,0.00016438,2]
[366412231,1750236339928,-855.1,0.00016438,2]
[366412232,1750236339952,-923.56,0.00016438,2]
[366412233,1750236339975,-521.35,0.00016438,2]
[366412234,1750236340000,-2578.65,0.00016438,2]
[366412235,1750236340024,-490.0,0.00016438,2]
[366412236,1750236340048,-1127.64,0.00016438,2]
[366412237,1750236340072,-511.99,0.00016438,2]
[366412238,1750236340097,-490.0,0.00016438,2]
[366412239,1750236340120,-662.52,0.00016438,2]
[366412240,1750236340150,-2461.07,0.00016438,2]
[366412241,1750236340182,-490.0,0.00016438,2]
[366412242,1750236340208,-613.68,0.00016438,2]
[366412243,1750236340233,-1732.17,0.00016438,2]
[366412244,1750236340257,-494.04793642,0.00016438,2]
[366412245,1750236340282,-490.0,0.00016438,2]
[366412246,1750236340307,-826.89,0.00016438,2]
[366412247,1750236340331,-490.0,0.00016438,2]
[366412248,1750236340355,-9615.8,0.00016438,2]
[366412249,1750236340380,-490.0,0.00016438,2]
[366412250,1750236340405,-490.0,0.00016438,2]
[366412251,1750236340431,-1247.07,0.00016438,2]
[366412252,1750236340454,-831.52,0.00016438,2]
[366412253,1750236340481,-1014.09,0.00016438,2]
[366412254,1750236340504,-847.17,0.00016438,2]
[366412255,1750236340527,-517.53,0.00016438,2]
[366412256,1750236340551,-3608.42,0.00016438,2]
[366412257,1750236340573,-1237.49,0.00016438,2]
[366412258,1750236340599,-3452.32,0.00016438,2]
[366412259,1750236340621,-490.0,0.00016438,2]
[366412260,1750236340645,-1392.46,0.00016438,2]
[366412261,1750236340669,-984.33,0.00016438,2]
[366412262,1750236340697,-501.99065618,0.00016438,2]
[366412263,1750236340721,-490.0,0.00016438,2]
[366412264,1750236340745,-3393.77568459,0.00016438,2]
[366412265,1750236358138,-508.32,0.00016438,2]
[366412266,1750236358163,-490.0,0.00016438,2]
[366412267,1750236358188,-578.52,0.00016438,2]
[366412268,1750236358213,-490.0,0.00016438,2]
[366412269,1750236358237,-1271.43,0.00016438,2]
[366412270,1750236358263,-1201.86,0.00016438,2]
[366412271,1750236358287,-1326.0,0.00016438,2]
[366412272,1750236358309,-490.0,0.00016438,2]
[366412273,1750236358331,-1534.42,0.00016438,2]
[366412274,1750236358353,-592.32,0.00016438,2]
[366412275,1750236358375,-490.0,0.00016438,2]
[366412276,1750236358397,-490.0,0.00016438,2]
[366412277,1750236358418,-676.9,0.00016438,2]
[366412278,1750236358438,-2006.91,0.00016438,2]
[366412279,1750236358458,-7592.48,0.00016438,2]
[366412280,1750236358481,-490.0,0.00016438,2]
[366412281,1750236358501,-641.76,0.00016438,2]
[366412282,1750236358521,-490.0,0.00016438,2]
[366412283,1750236358541,-684.44,0.00016438,2]
[366412284,1750236358565,-1030.94,0.00016438,2]
[366412285,1750236358587,-1196.37,0.00016438,2]
[366412286,1750236358609,-207.56373985,0.00016438,2]
[366412287,1750236358630,-490.0,0.00016438,2]
[366412288,1750236358652,-490.0,0.00016438,2]
[366412289,1750236358674,-490.0,0.00016438,2]
[366412290,1750236358696,-6954.79,0.00016438,2]
[366412291,1750236358717,-490.0,0.00016438,2]
[366412292,1750236358738,-1417.84,0.00016438,2]
[366412293,1750236358758,-1095.21,0.00016438,2]
[366412294,1750236358777,-537.11,0.00016438,2]
[366412295,1750236358796,-490.0,0.00016438,2]
[366412296,1750236358815,-490.0,0.00016438,2]
[366412297,1750236358835,-600.27,0.00016438,2]
[366412298,1750236358855,-490.0,0.00016438,2]
[366412299,1750236358874,-490.0,0.00016438,2]
[366412300,1750236358897,-21846.63,0.00016438,2]
[366412301,1750236358918,-490.0,0.00016438,2]
[366412302,1750236358939,-959.69,0.00016438,2]
[366412303,1750236358961,-871.01,0.00016438,2]
[366412304,1750236358982,-2983.59,0.00016438,2]
[366412305,1750236359004,-1163.77,0.00016438,2]
[366412306,1750236359025,-490.0,0.00016438,2]
[366412307,1750236359049,-2658.33,0.00016438,2]
[366412308,1750236359071,-490.0,0.00016438,2]
[366412309,1750236359095,-490.0,0.00016438,2]
[366412310,1750236359119,-490.0,0.00016438,2]
[366412311,1750236359142,-1046.98,0.00016438,2]
[366412312,1750236359164,-490.0,0.00016438,2]
[366412313,1750236359187,-1766.7,0.00016438,2]
[366412314,1750236359209,-1879.62,0.00016438,2]
[366412315,1750236359230,-846.32,0.00016438,2]
[366412316,1750236359248,-885.53,0.00016438,2]
[366412317,1750236359267,-1611.15,0.00016438,2]
[366412318,1750236359287,-3607.72,0.00016438,2]
[366412319,1750236359311,-490.0,0.00016438,2]
[366412320,1750236359333,-490.0,0.00016438,2]
[366412321,1750236359356,-490.0,0.00016438,2]
[366412322,1750236359380,-1999.75,0.00016438,2]
[366412323,1750236359404,-3877.74,0.00016438,2]
[366412324,1750236359428,-4581.02,0.00016438,2]
[366412325,1750236359452,-490.0,0.00016438,2]
[366412326,1750236359483,-1137.26,0.00016438,2]
[366412327,1750236359513,-1025.96,0.00016438,2]
[366412328,1750236359535,-504.38,0.00016438,2]
[366412329,1750236359558,-490.0,0.00016438,2]
[366412330,1750236359582,-351.39626015,0.00016438,2]
[366412332,1750236406826,739.0,0.0002465,120]
[366412333,1750236490579,1000.0,0.00018001,29]
[366412334,1750236494826,528.0,0.00018001,29]
[366412336,1750236530800,701.0,0.0002465,120]
[366412347,1750236593055,227.0,0.0002465,120]
[366412350,1750236612119,202.0,0.00012657,2]
[366412351,1750236631512,-150.45,0.00013699,2]
[366412352,1750236631522,-531.71950726,0.00014132,2]
[366412353,1750236631619,-1267.46543717,0.00014132,2]
[366412354,1750236631629,-300.0,0.00014232,2]
[366412355,1750236631640,-202.0,0.00014629,4]
[366412356,1750236631650,-446.84164223,0.00014765,2]
[366412357,1750236631660,-250.0,0.00014877,2]
[366412372,1750236631955,-300.0,0.00014877,2]
[366412374,1750236631965,-250.0,0.00015022,2]
[366412376,1750236631975,-600.0,0.00015022,4]
[366412378,1750236631985,-300.0,0.00015022,2]
[366412380,1750236631994,-600.0,0.00015068,4]
[366412382,1750236632003,-32.68066322,0.00015068,2]
[366412384,1750236632015,-267.31933678,0.00015068,2]
[366412386,1750236632024,-63.11091232,0.00015409,2]
[366412388,1750236632035,-210.23908768,0.00015409,2]
[366412390,1750236632044,-300.0,0.00015766,2]
[366412392,1750236632054,-72.94639756,0.00016299,2]
[366412396,1750236632074,-227.05360244,0.00016299,2]
[366412398,1750236632083,-201.6741581,0.00016299,2]
[366412532,1750236637339,-0.41820489,0.00016299,2]
[366412662,1750236639109,-97.90763701,0.00016299,2]
[366412664,1750236639123,-300.0,0.00016299,2]
[366412666,1750236639138,-94.10593722,0.00016299,2]
[366412673,1750236639195,-1105.89406278,0.00016299,2]
[366412675,1750236639204,-1000.0,0.000163,2]
[366412677,1750236639214,-1000.0,0.000163,2]
[366412679,1750236639223,-1000.0,0.000163,2]
[366412681,1750236639233,-464.0,0.000163,3]
[366412683,1750236639242,-1000.0,0.000163,3]
[366412685,1750236639252,-1000.0,0.000163,2]
[366412687,1750236639262,-1000.0,0.000163,2]
[366412690,1750236639271,-1000.0,0.000163,2]
[366412693,1750236639280,-1000.0,0.000163,2]
[366412696,1750236639289,-230.10593722,0.000163,2]
[366412700,1750236639305,-316.73,0.000163,2]
[366412703,1750236639316,-453.16406278,0.000163,2]
[366412706,1750236639325,-550.0,0.00016337,2]
[366412709,1750236639334,-204.4899913,0.00016337,2]
[366412781,1750236639741,-95.5100087,0.00016337,2]
[366412784,1750236639752,-1348.62480726,0.00016338,2]
[366412787,1750236639761,-2580.62691573,0.00016338,2]
[366412790,1750236639771,-167.75491977,0.00016338,2]
[366412792,1750236639780,-155.57963119,0.00016338,2]
[366412795,1750236639790,-151.72749855,0.00016338,2]
[366412798,1750236639799,-730.1764,0.00016338,2]
[366412801,1750236639808,-11820.2342,0.00016338,2]
[366412804,1750236639817,-1000.0,0.00016338,2]
[366412807,1750236639827,-14321.59607134,0.00016338,2]
[366413074,1750236642491,-10897.0,0.00016338,2]
[366413085,1750236642701,-3341.81942866,0.00016338,2]
[366413087,1750236642711,-5000.0,0.00016338,2]
[366413089,1750236642720,-18102.671,0.00016338,2]
[366413091,1750236642729,-151.0,0.00016377,2]
[366413093,1750236642738,-1000.0,0.000164,2]
[366413095,1750236642748,-1000.0,0.000164,2]
[366413097,1750236642757,-1000.0,0.000164,2]
[366413099,1750236642766,-1000.0,0.000164,2]
[366413101,1750236642776,-400.0,0.000164,5]
[366413103,1750236642785,-1000.0,0.000164,2]
[366413105,1750236642795,-1000.0,0.000164,2]
[366413107,1750236642805,-1000.0,0.000164,2]
[366413109,1750236642814,-1000.0,0.000164,2]
[366413111,1750236642823,-1000.0,0.000164,2]
[366413113,1750236642833,-1091.0,0.000164,2]
[366413115,1750236642842,-1000.0,0.000164,3]
[366413117,1750236642851,-1000.0,0.000164,3]
[366413119,1750236642861,-1000.0,0.000164,3]
[366413121,1750236642870,-1000.0,0.000164,3]
[366413123,1750236642879,-1000.0,0.000164,2]
[366413126,1750236642889,-1000.0,0.000164,2]
[366413128,1750236642899,-1000.0,0.000164,2]
[366413130,1750236642908,-1000.0,0.000164,3]
[366413132,1750236642918,-1000.0,0.000164,3]
[366413135,1750236642928,-1000.0,0.000164,2]
[366413138,1750236642937,-1000.0,0.000164,2]
[366413140,1750236642946,-151.0,0.000164,2]
[366413144,1750236642956,-151.0,0.000164,2]
[366413147,1750236642965,-151.0,0.00016403,2]
[366413150,1750236642974,-151.72749855,0.0001642,2]
[366413153,1750236642984,-1348.62480725,0.00016429,2]
[366413156,1750236642993,-2580.62691564,0.00016429,2]
[366413159,1750236643002,-500.0,0.00016437,2]
[366413162,1750236643012,-217.19965227,0.00016437,2]
[366413164,1750236643021,-500.0,0.00016437,2]
[366413166,1750236643031,-334.37454839,0.00016437,2]
[366413168,1750236643041,-500.0,0.00016437,2]
[366413170,1750236643050,-500.0,0.00016437,2]
[366413172,1750236643060,-500.0,0.00016437,2]
[366413174,1750236643069,-405.59124596,0.00016437,2]
[366413176,1750236643079,-550.81988383,0.00016437,2]
[366413178,1750236643088,-317.68359563,0.00016437,2]
[366413180,1750236643097,-264.6170604,0.00016437,2]
[366413182,1750236643108,-381.11583119,0.00016437,2]
[366413184,1750236643117,-8343.64,0.00016437,2]
[366413186,1750236643127,-756.45,0.00016438,2]
[366413188,1750236643137,-569.61,0.00016438,2]
[366413190,1750236643146,-490.0,0.00016438,2]
[366413193,1750236643156,-490.0,0.00016438,2]
[366413194,1750236643165,-177.514471,0.00016438,2]
[366413196,1750236643175,-1859.69,0.00016438,2]
[366413198,1750236643185,-490.0,0.00016438,2]
[366413200,1750236643194,-490.0,0.00016438,2]
[366413202,1750236643204,-628.95,0.00016438,2]
[366413205,1750236643214,-490.0,0.00016438,2]
[366413207,1750236643223,-490.0,0.00016438,2]
[366413209,1750236643232,-490.0,0.00016438,2]
[366413211,1750236643242,-948.04,0.00016438,2]
[366413213,1750236643252,-1127.74,0.00016438,2]
[366413215,1750236643261,-1263.31,0.00016438,2]
[366413217,1750236643270,-665.97,0.00016438,2]
[366413219,1750236643280,-490.0,0.00016438,2]
[366413221,1750236643289,-490.0,0.00016438,2]
[366413223,1750236643298,-1983.23,0.00016438,2]
[366413225,1750236643307,-1454.37,0.00016438,2]
[366413227,1750236643317,-490.0,0.00016438,2]
[366413229,1750236643328,-1228.57,0.00016438,2]
[366413231,1750236643337,-490.0,0.00016438,2]
[366413233,1750236643346,-859.46,0.00016438,2]
[366413235,1750236643355,-643.13,0.00016438,2]
[366413237,1750236643364,-544.88,0.00016438,2]
[366413239,1750236643373,-490.0,0.00016438,2]
[366413241,1750236643382,-490.0,0.00016438,2]
[366413243,1750236643392,-588.59,0.00016438,2]
[366413245,1750236643402,-490.0,0.00016438,2]
[366413247,1750236643411,-750.68,0.00016438,2]
[366413249,1750236643420,-655.54,0.00016438,2]
[366413251,1750236643430,-648.42,0.00016438,2]
[366413253,1750236643439,-490.0,0.00016438,2]
[366413255,1750236643448,-490.0,0.00016438,2]
[366413257,1750236643457,-953.71,0.00016438,2]
[366413259,1750236643466,-2552.77,0.00016438,2]
[366413261,1750236643475,-699.66,0.00016438,2]
[366413263,1750236643485,-596.55,0.00016438,2]
[366413265,1750236643494,-1022.22,0.00016438,2]
[366413267,1750236643503,-490.0,0.00016438,2]
[366413269,1750236643512,-490.0,0.00016438,2]
[366413271,1750236643521,-490.0,0.00016438,2]
[366413273,1750236643530,-551.41,0.00016438,2]
[366413275,1750236643539,-528.43,0.00016438,2]
[366413277,1750236643548,-786.03,0.00016438,2]
[366413279,1750236643558,-618.93,0.00016438,2]
[366413281,1750236643567,-681.67,0.00016438,2]
[366413283,1750236643579,-783.89,0.00016438,2]
[366413285,1750236643589,-490.0,0.00016438,2]
[366413287,1750236643599,-490.0,0.00016438,2]
[366413289,1750236643608,-531.04,0.00016438,2]
[366413291,1750236643617,-1377.22,0.00016438,2]
[366413293,1750236643626,-1807.6,0.00016438,2]
[366413295,1750236643636,-511.48,0.00016438,2]
[366413297,1750236643646,-536.79625191,0.00016438,2]
[366413299,1750236643655,-607.69,0.00016438,2]
[366413301,1750236643664,-490.0,0.00016438,2]
[366413303,1750236643673,-598.73,0.00016438,2]
[366413305,1750236643682,-515.05,0.00016438,2]
[366413307,1750236643691,-490.0,0.00016438,2]
[366413309,1750236643700,-790.54,0.00016438,2]
[366413311,1750236643709,-490.0,0.00016438,2]
[366413313,1750236643719,-2242.51,0.00016438,2]